bitfinex/quotes_ETHUSD_20250616
["timestamp","ask_amount","ask_price","bid_price","bid_amount"]
[1750083641889,0.1888,2641.7,2641.6,14.68658449]
[1750083642089,0.1888,2641.7,2641.6,23.05358449]
[1750083643723,0.1888,2641.7,2641.6,23.05258449]
[1750083645520,0.1888,2641.7,2641.6,26.55881295]
[1750083646478,10.90459512,2642.5,2641.6,26.55881295]
[1750083646479,30.0,2642.4,2642.1,0.7709]
[1750083646759,30.0,2642.5,2642.2,12.14872369]
[1750083646975,30.0,2642.5,2642.3,1.822]
[1750083647180,43.81504654,2642.5,2642.4,6.542]
[1750083647352,30.0,2642.3,2641.7,0.7709]
[1750083647552,12.88091907,2641.8,2641.6,10.901]
[1750083647751,40.0,2641.7,2641.6,17.442]
[1750083647957,43.78544119,2641.7,2641.6,10.901]
[1750083648139,45.24067788,2641.7,2641.6,10.901]
[1750083648339,45.24067788,2641.7,2641.6,17.442]
[1750083648575,49.05572442,2641.7,2641.6,17.442]
[1750083648764,49.05572442,2641.7,2641.6,10.901]
[1750083648964,0.55,2641.3,2641.1,0.02]
[1750083649268,0.7732,2641.6,2641.1,0.02]
[1750083649269,12.61711907,2641.2,2641.1,0.02]
[1750083649575,10.55,2641.4,2641.1,8.381]
[1750083649773,30.0,2641.3,2641.1,8.381]
[1750083650276,30.0,2641.2,2641.1,12.16730116]
[1750083650482,30.0,2641.2,2641.1,13.7626736]
[1750083651349,0.7732,2641.6,2641.1,13.7626736]
[1750083651350,30.0,2641.6,2641.4,3.78587112]
[1750083651557,30.0,2641.6,2641.5,10.3257278]
[1750083651878,30.0,2641.6,2641.5,6.54]
[1750083652084,12.06711907,2641.7,2641.5,6.54]
[1750083652381,30.0,2641.6,2641.5,10.3257278]
[1750083652556,30.90572633,2641.6,2641.5,6.54]
[1750083652764,0.90572633,2641.6,2641.5,6.54]
[1750083652971,30.0,2641.6,2641.5,6.54]
[1750083653285,0.90572633,2641.6,2641.5,6.54]
[1750083653586,30.0,2641.6,2641.5,6.54]
[1750083653788,50.0,2641.4,2641.1,0.02]
[1750083653971,30.7825,2641.4,2641.3,1.822]
[1750083654286,10.55,2641.3,2641.2,1.822]
[1750083654448,41.45627801,2641.3,2641.2,8.361]
[1750083654849,30.90627801,2641.3,2641.2,8.361]
[1750083655157,0.8065,2641.8,2641.4,3.78577579]
[1750083655354,30.0,2641.7,2641.5,6.538]
[1750083655653,30.90608804,2641.6,2641.5,10.3237278]
[1750083658239,30.0,2641.7,2641.6,3.78558449]
[1750083658355,30.90616186,2641.7,2641.6,10.32258449]
[1750083658702,30.90616186,2641.7,2641.6,6.537]
[1750083659408,30.90616186,2641.7,2641.6,10.32258449]
[1750083659915,0.90616186,2641.7,2641.6,10.32258449]
[1750083660052,10.0,2642.0,2641.6,10.32258449]
[1750083660053,30.0,2641.9,2641.7,3.78538286]
[1750083660252,40.0,2641.9,2641.8,8.348]
[1750083660448,40.90617986,2641.9,2641.8,12.1332979]
[1750083660773,40.90617986,2641.9,2641.8,8.348]
[1750083661103,40.90617986,2641.9,2641.8,12.1332979]
[1750083661526,0.90617986,2641.9,2641.8,12.1332979]
[1750083661806,40.0,2642.1,2641.9,3.78509358]
[1750083662045,30.0,2642.1,2642.0,6.535]
[1750083662151,30.90611677,2642.1,2642.0,6.535]
[1750083662352,10.7388,2642.0,2641.3,0.757]
[1750083662660,10.7388,2642.0,2641.1,0.02]
[1750083662661,0.1888,2641.3,2641.1,0.02]
[1750083662875,12.06711907,2641.4,2641.2,12.1331578]
[1750083663070,12.06711907,2641.4,2641.2,8.347]
[1750083663271,30.0,2641.5,2641.3,3.78597148]
[1750083663470,30.0,2641.5,2641.4,10.31987112]
[1750083663676,30.906211,2641.5,2641.4,10.31987112]
[1750083663885,30.0,2641.5,2641.4,10.31987112]
[1750083664194,30.0,2641.6,2641.5,3.7857278]
[1750083664383,0.90622095,2641.6,2641.5,3.7857278]
[1750083664703,0.1888,2641.5,2641.4,10.31980847]
[1750083665695,0.1888,2641.5,2641.4,8.346]
[1750083666005,0.1888,2641.5,2641.4,12.13087112]
[1750083666882,0.1888,2641.5,2641.4,8.345]
[1750083667658,0.1888,2641.5,2641.4,14.1716649]
[1750083668455,0.1888,2641.5,2641.2,3.78606336]
[1750083668703,30.0,2641.5,2641.1,0.8477]
[1750083668876,12.06711907,2641.3,2641.2,8.344]
[1750083669284,12.06711907,2641.3,2641.2,8.343]
[1750083670697,0.90623709,2641.5,2641.2,8.343]
[1750083670883,30.0,2641.5,2641.3,3.78593073]
[1750083671082,30.0,2641.7,2641.4,10.31687112]
[1750083671290,40.0,2641.5,2641.4,10.31687112]
[1750083671464,30.0,2641.7,2641.5,3.78572036]
[1750083671665,40.0,2641.7,2641.6,10.31558449]
[1750083671876,40.90618356,2641.7,2641.6,10.31558449]
[1750083672067,0.90618356,2641.7,2641.6,10.31558449]
[1750083672301,40.0,2642.1,2641.9,3.78508495]
[1750083672481,30.0,2642.5,2642.1,3.78484239]
[1750083672686,4.55756339,2642.6,2642.0,8.342]
[1750083672687,40.0,2642.3,2642.2,6.53]
[1750083673010,4.72101359,2642.3,2642.2,6.53]
[1750083673167,0.90596705,2642.4,2642.2,6.53]
[1750083673368,30.0,2642.4,2642.2,6.53]
[1750083673704,12.97308612,2642.3,2642.2,6.53]
[1750083673866,12.97308612,2642.3,2641.9,3.78509604]
[1750083674063,0.55,2642.2,2642.0,8.341]
[1750083674268,0.55,2642.2,2642.0,12.12599997]
[1750083674700,12.97308612,2642.3,2642.0,8.341]
[1750083674917,30.0,2642.2,2642.0,8.341]
[1750083675270,30.0,2642.2,2642.1,3.78486809]
[1750083675469,0.90566231,2642.2,2642.1,3.78486809]
[1750083675712,30.0,2642.2,2642.1,3.78486809]
[1750083676027,0.90566231,2642.2,2642.1,3.78486809]
[1750083676167,0.90566231,2642.4,2642.2,3.78459071]
[1750083676368,30.0,2642.3,2642.2,3.78459071]
[1750083676594,30.0,2642.4,2642.3,3.78458161]
[1750083676811,30.90571707,2642.4,2642.3,3.78458161]
[1750083677395,0.1888,2642.3,2642.0,1.812]
[1750083677734,12.06711907,2642.2,2642.1,6.527]
[1750083678222,12.06711907,2642.2,2642.1,8.339]
[1750083678724,0.7749,2642.3,2642.1,8.339]
[1750083678935,30.0,2642.2,2642.1,8.339]
[1750083680688,30.0,2642.2,2642.1,8.338]
[1750083680931,30.0,2642.2,2642.1,12.12286809]
[1750083681726,30.0,2642.2,2642.1,8.338]
[1750083682147,0.1888,2642.1,2641.7,3.78533204]
[1750083682305,0.1888,2642.1,2641.8,12.1212352]
[1750083682488,0.1888,2641.8,2641.7,3.7853729]
[1750083682688,0.1888,2641.8,2641.7,12.1213729]
[1750083684792,0.1888,2641.8,2641.7,8.336]
[1750083684998,0.1888,2641.8,2641.7,1.812]
[1750083685207,38.03499958,2641.8,2641.7,1.812]
[1750083685526,38.9408558,2641.8,2641.7,1.812]
[1750083686951,48.9408558,2641.8,2641.7,1.812]
[1750083687394,41.09465622,2641.8,2641.7,1.812]
[1750083687857,41.09465622,2641.8,2641.7,12.11844119]
[1750083688006,41.09465622,2641.8,2641.7,8.333]
[1750083688189,41.09465622,2641.8,2641.7,12.11844119]
[1750083688416,31.09465622,2641.8,2641.7,3.78544119]
[1750083688697,0.1888,2641.8,2641.7,12.10844119]
[1750083688933,0.1888,2641.8,2641.7,13.77850119]
[1750083690752,0.1888,2641.8,2641.7,8.323]
[1750083690932,0.1888,2641.8,2641.5,4.59221492]
[1750083691238,30.0,2641.8,2641.7,1.803]
[1750083691402,30.9059308,2641.8,2641.7,1.803]
[1750083692097,0.55,2642.2,2641.8,3.78520521]
[1750083692298,30.0,2642.2,2641.9,6.519]
[1750083692531,40.0,2642.0,2641.9,6.519]
[1750083692832,30.0,2642.2,2641.9,6.519]
[1750083692994,0.90593573,2642.1,2641.9,6.519]
[1750083693201,30.0,2642.0,2641.9,6.519]
[1750083693400,30.0,2642.2,2641.9,10.30415462]
[1750083693599,30.90602881,2642.1,2642.0,3.78501135]
[1750083695434,30.0,2642.5,2642.1,3.78477309]
[1750083695596,30.0,2642.5,2642.2,6.518]
[1750083695597,30.0,2642.3,2642.2,6.518]
[1750083695920,30.0,2642.3,2641.5,3.78567771]
[1750083695921,30.0,2641.7,2641.5,8.32]
[1750083696235,52.97336988,2641.6,2641.5,1.803]
[1750083696449,52.97336988,2641.6,2641.5,8.32]
[1750083696612,40.90625081,2641.6,2641.5,12.1057278]
[1750083697399,30.0,2641.6,2641.5,14.47668618]
[1750083697602,6.88536056,2642.6,2641.5,10.69095838]
[1750083697603,12.06711907,2642.5,2641.5,10.69095838]
[1750083697842,40.0,2642.4,2642.0,3.78493477]
[1750083698002,40.0,2642.2,2642.1,12.10379978]
[1750083698208,30.0,2642.4,2642.2,3.78470849]
[1750083698404,30.90587458,2642.3,2642.2,3.78470849]
[1750083698601,30.90587458,2642.3,2642.2,10.30070849]
[1750083699722,30.90587458,2642.3,2642.2,6.516]
[1750083700167,30.0,2642.2,2641.8,0.8302]
[1750083700341,12.06711907,2641.9,2641.8,6.515]
[1750083700544,42.06711907,2641.9,2641.8,6.515]
[1750083700732,30.90587458,2641.9,2641.8,10.3002979]
[1750083702169,30.90587458,2641.9,2641.8,6.515]
[1750083702572,30.90587458,2641.9,2641.8,10.3002979]
[1750083702872,30.90587458,2641.9,2641.8,12.1032979]
[1750083706574,30.90587458,2641.9,2641.8,8.318]
[1750083706934,30.90587458,2641.9,2641.8,12.1032979]
[1750083708652,0.90587458,2641.9,2641.8,12.1032979]
[1750083708858,0.8149,2642.3,2642.0,3.78496601]
[1750083709107,40.0,2642.2,2642.1,6.51]
[1750083709257,30.90666963,2642.2,2642.1,10.29486809]
[1750083709952,0.90666963,2642.2,2642.1,10.29486809]
[1750083710287,30.0,2642.2,2642.1,10.29486809]
[1750083710490,30.90666963,2642.2,2642.1,10.29486809]
[1750083710786,0.90666963,2642.2,2642.1,10.29486809]
[1750083710953,30.0,2642.3,2642.2,3.78465387]
[1750083711152,0.90666963,2642.3,2642.2,3.78465387]
[1750083711411,30.0,2642.5,2642.3,3.78447814]
[1750083711696,40.0,2642.5,2642.4,12.09543838]
[1750083711890,40.90650648,2642.5,2642.4,12.09543838]
[1750083712066,40.90650648,2642.5,2642.4,8.311]
[1750083712590,30.90650648,2642.5,2642.4,12.09543838]
[1750083713002,1.88527175,2643.0,2642.4,9.89899354]
[1750083713156,1.88527175,2643.0,2642.5,0.82004014]
[1750083713355,1.88527175,2643.0,2642.6,6.507]
[1750083713574,1.88527175,2643.0,2642.9,3.78372242]
[1750083713797,1.88527175,2643.0,2642.9,10.29072242]
[1750083714492,1.88527175,2643.0,2642.9,11.77705067]
[1750083714748,10.7754,2643.7,2643.5,3.78286171]
[1750083714915,0.7754,2643.7,2643.6,1.803]
[1750083715099,40.7754,2643.7,2643.6,8.309]
[1750083715415,44.59044654,2643.7,2643.6,8.309]
[1750083715618,45.49563098,2643.7,2643.6,8.309]
[1750083715823,30.90518444,2643.7,2643.6,8.309]
[1750083716017,0.02,2643.9,2643.8,3.78243437]
[1750083716218,0.02,2643.9,2643.8,10.28743437]
[1750083716422,0.02,2643.9,2643.8,3.78243437]
[1750083716719,0.02,2643.9,2643.8,12.08943437]
[1750083717423,0.02,2643.9,2643.8,14.48533422]
[1750083717985,0.2088,2643.9,2643.8,14.47433422]
[1750083718497,0.02,2643.9,2643.8,14.47433422]
[1750083718692,0.02,2643.9,2643.8,16.36713422]
[1750083719330,0.02,2643.9,2643.8,12.88613437]
[1750083720528,0.02,2643.9,2643.8,12.88413437]
[1750083720831,0.2088,2643.9,2643.8,3.78243437]
[1750083720983,40.0,2643.8,2643.4,1.792]
[1750083721180,40.0,2643.8,2643.5,6.5]
[1750083721181,12.06711907,2643.7,2643.5,6.5]
[1750083721516,12.06711907,2643.7,2643.2,3.7832294]
[1750083721818,12.25591907,2643.4,2642.8,0.7989]
[1750083721990,12.25591907,2643.4,2643.1,1.792]
[1750083721991,15.85021285,2643.4,2643.1,1.792]
[1750083722178,0.8078,2643.3,2643.1,1.792]
[1750083722387,16.40041204,2643.2,2643.1,1.792]
[1750083722606,16.40041204,2643.2,2642.7,10.907]
[1750083722607,30.0,2642.9,2642.7,10.907]
[1750083722806,30.0,2642.9,2641.8,0.1888]
[1750083722807,0.55,2642.7,2641.9,0.789]
[1750083723076,30.0,2642.3,2642.2,1.792]
[1750083723491,10.55,2642.5,2642.2,1.792]
[1750083723679,30.0,2642.4,2642.2,1.792]
[1750083724230,33.78458161,2642.3,2642.2,1.792]
[1750083724398,30.0,2642.1,2641.9,8.29]
[1750083724730,30.0,2642.0,2641.8,8.29]
[1750083725035,49.19595876,2642.0,2641.8,1.792]
[1750083725192,12.98098475,2642.0,2641.8,1.792]
[1750083725535,34.33518979,2641.9,2641.6,10.901]
[1750083725818,10.55,2641.8,2641.6,12.693]
[1750083726128,14.3353081,2641.8,2641.6,12.693]
[1750083726430,39.19595876,2641.7,2641.6,12.693]
[1750083726636,30.55,2641.6,2641.1,0.02]
[1750083726921,30.0,2641.5,2641.2,8.29]
[1750083727285,0.1888,2641.2,2641.1,6.518]
[1750083727479,0.1888,2641.2,2641.1,12.09630116]
[1750083727700,0.55,2641.8,2641.1,8.9618]
[1750083727929,10.0,2641.6,2641.2,8.289]
[1750083728143,30.0,2641.5,2641.2,1.792]
[1750083728485,33.81504654,2641.5,2641.2,1.792]
[1750083728750,33.81504654,2641.5,2641.1,1.813]
[1750083728751,30.0,2641.3,2641.1,1.813]
[1750083729029,40.55,2641.2,2641.1,0.02]
[1750083729230,50.8341578,2641.2,2641.1,0.02]
[1750083729439,51.6568578,2641.2,2641.1,0.02]
[1750083729733,54.66548682,2641.2,2641.1,0.02]
[1750083730103,40.55,2640.3,2640.2,1.793]
[1750083730297,30.0,2640.2,2640.1,0.02]
[1750083730868,44.33759184,2640.2,2640.1,0.02]
[1750083731004,57.34859714,2640.2,2640.1,0.02]
[1750083731203,44.36504654,2640.2,2640.1,0.02]
[1750083731397,48.15263838,2640.2,2640.1,0.02]
[1750083731899,44.36504654,2640.2,2640.1,0.02]
[1750083732122,54.65063838,2640.2,2640.1,0.02]
[1750083733142,55.47023838,2640.2,2640.1,0.02]
[1750083733504,0.55,2640.0,2639.1,0.02]
[1750083733710,41.3696,2639.2,2639.1,0.02]
[1750083733909,40.55,2639.2,2639.1,0.02]
[1750083735147,40.55,2639.2,2639.1,3.80917055]
[1750083735148,40.0,2639.2,2639.1,3.80917055]
[1750083735445,30.0,2639.4,2639.2,3.78893681]
[1750083735643,40.0,2639.3,2639.1,0.02]
[1750083735815,30.0,2639.3,2639.1,3.80906915]
[1750083736150,30.0,2639.3,2639.2,3.78902697]
[1750083736746,0.7797,2639.8,2639.7,3.78830927]
[1750083736747,30.0,2639.8,2639.7,3.78830927]
[1750083736953,30.0,2640.1,2639.8,3.78808518]
[1750083737131,4.62674654,2640.2,2639.2,0.93911927]
[1750083737305,30.0,2640.4,2639.4,0.7976]
[1750083737510,9.19595876,2640.2,2639.4,0.7976]
[1750083738071,30.0,2639.9,2639.8,3.78816577]
[1750083738365,30.0,2640.1,2639.9,3.78800538]
[1750083738645,40.0,2640.1,2640.0,3.78787878]
[1750083738804,30.0,2640.0,2639.6,3.78845279]
[1750083739003,0.1888,2639.8,2639.7,3.78830927]
[1750083739245,30.0,2639.9,2639.8,3.78816577]
[1750083739489,9.19595876,2639.9,2639.1,0.7854]
[1750083739742,0.1888,2639.5,2639.1,1.814]
[1750083739899,30.0,2639.5,2639.2,3.78890919]
[1750083740099,9.19595876,2639.6,2639.1,5.60315623]
[1750083740100,3.81504654,2639.4,2639.1,5.60315623]
[1750083740343,0.55,2639.5,2639.3,3.78887635]
[1750083740538,30.0,2639.8,2639.5,3.78853447]
[1750083740699,40.0,2639.6,2639.5,3.78859632]
[1750083740904,10.0,2639.6,2639.5,3.78859632]
[1750083741442,30.0,2639.9,2639.6,0.8308]
[1750083741605,3.81504654,2639.9,2639.6,3.78844621]
[1750083741802,1.0,2640.0,2639.9,3.78802227]
[1750083742035,30.0,2640.3,2640.0,3.78778463]
[1750083742201,10.0,2640.2,2640.0,3.78778463]
[1750083742402,0.1888,2640.0,2639.9,3.78794869]
[1750083742607,40.0,2640.1,2640.0,3.78787878]
[1750083742810,30.0,2640.1,2640.0,3.78787878]
[1750083743045,0.55,2640.3,2640.2,3.78759184]
[1750083743216,0.1888,2640.2,2640.1,3.7876861]
[1750083743415,0.1888,2640.2,2640.1,3.78773531]
[1750083744306,0.1888,2640.2,2640.0,3.78785376]
[1750083744503,30.0,2640.1,2639.6,1.794]
[1750083744706,30.0,2640.1,2640.0,3.78787878]
[1750083744946,33.09861,2640.1,2640.0,3.78787878]
[1750083745123,30.0,2640.1,2640.0,3.78787878]
[1750083745325,30.0,2640.1,2639.9,3.78798951]
[1750083745647,30.0,2640.2,2640.0,3.78787878]
[1750083745817,30.0,2640.2,2640.1,3.78773531]
[1750083746028,30.0,2640.4,2640.2,3.78753265]
[1750083746221,30.0,2640.3,2640.2,3.78753265]
[1750083746634,30.0,2640.4,2640.1,3.78773462]
[1750083747023,0.1888,2640.1,2640.0,3.78787878]
[1750083747311,30.0,2640.3,2640.2,3.78751175]
[1750083748146,0.1888,2640.2,2640.1,3.78768795]
[1750083748953,0.1888,2640.2,2640.1,12.07068795]
[1750083749259,0.1888,2640.2,2639.9,5.57493338]
[1750083749260,30.0,2640.1,2639.9,5.57493338]
[1750083749552,0.1888,2640.0,2639.9,5.57494935]
[1750083749923,10.0,2639.8,2639.5,12.701]
[1750083750159,40.0,2639.6,2639.5,1.787]
[1750083750319,30.0,2639.6,2639.5,5.57559632]
[1750083750654,6.496,2640.0,2639.9,3.78794204]
[1750083750655,20.0,2640.0,2639.9,3.78794204]
[1750083750856,0.8136,2640.3,2640.1,3.78765646]
[1750083751024,30.0,2640.2,2639.6,0.03788137]
[1750083751359,0.1888,2639.6,2639.5,6.36609632]
[1750083752257,9.19595876,2640.2,2639.5,6.36609632]
[1750083752258,0.37872334,2640.4,2639.5,2.61538252]
[1750083752548,30.0,2640.7,2640.1,4.56701851]
[1750083752707,9.19595876,2640.5,2640.2,3.78748005]
[1750083752912,30.0,2640.4,2640.3,3.78744839]
[1750083753147,40.0,2640.4,2640.3,3.78744839]
[1750083753929,30.0,2640.3,2640.2,5.57453178]
[1750083754126,1.3368,2640.1,2639.7,10.914]
[1750083754325,10.55,2640.0,2639.9,1.787]
[1750083754561,40.55,2640.0,2639.9,1.787]
[1750083754741,43.55862902,2640.0,2639.9,1.787]
[1750083755953,0.55,2640.3,2639.9,5.57494393]
[1750083756162,10.0,2640.1,2640.0,3.78787878]
[1750083756326,40.0,2640.2,2639.9,1.787]
[1750083756528,30.0,2640.2,2639.9,5.57189647]
[1750083756729,30.0,2640.2,2639.9,1.7839384]
[1750083757063,30.0,2640.0,2639.7,12.701]
[1750083757230,30.0,2640.0,2639.7,16.48929873]
[1750083757432,30.0,2640.0,2639.7,16.48924731]
[1750083757730,0.90491123,2639.9,2639.7,16.48929112]
[1750083757925,11.64049112,2639.8,2639.7,10.914]
[1750083758133,1.99543979,2639.8,2639.7,10.914]
[1750083758344,1.09049112,2639.8,2639.7,10.914]
[1750083758540,30.0,2639.8,2639.7,14.70230927]
[1750083758768,0.90494867,2639.8,2639.7,14.70230927]
[1750083758971,30.0,2639.9,2639.7,14.70230927]
[1750083759166,0.90494867,2639.8,2639.7,14.70230927]
[1750083759342,30.0,2639.9,2639.7,14.70230927]
[1750083759538,0.90494867,2639.8,2639.7,14.70230927]
[1750083759783,30.0,2639.9,2639.7,14.70224369]
[1750083760066,0.90494867,2639.8,2639.7,10.914]
[1750083760243,40.0,2639.8,2639.6,1.787]
[1750083760428,24.46595397,2639.7,2639.3,12.06885834]
[1750083760628,23.5610053,2639.7,2639.3,12.06885834]
[1750083760827,0.9061852,2639.6,2639.3,1.787]
[1750083761079,0.55,2639.4,2639.3,1.787]
[1750083761241,0.9061852,2639.5,2639.3,1.787]
[1750083761442,10.9061852,2639.6,2639.3,1.787]
[1750083761667,10.0,2639.7,2639.3,2.5794]
[1750083761880,40.0,2639.5,2639.4,1.787]
[1750083762040,40.9061852,2639.5,2639.4,1.787]
[1750083762241,40.9061852,2639.5,2639.4,1.78389453]
[1750083762441,44.72123174,2639.5,2639.4,1.78389453]
[1750083763276,30.0,2639.4,2639.2,1.787]
[1750083763448,0.9061852,2639.3,2639.2,1.787]
[1750083763656,0.1888,2639.2,2639.1,0.02]
[1750083763864,0.1888,2639.2,2639.1,8.299]
[1750083764264,0.1888,2639.2,2639.1,12.08817055]
[1750083765346,0.1888,2639.2,2639.1,0.02]
[1750083765802,31.28743,2639.2,2639.1,0.02]
[1750083765945,45.72860093,2639.2,2639.1,0.02]
[1750083766152,55.72860093,2639.2,2639.1,0.02]
[1750083766555,56.51310093,2639.2,2639.1,0.02]
[1750083767254,3.79009623,2638.5,2638.3,0.6667]
[1750083767459,43.79017586,2638.4,2638.3,0.6667]
[1750083767694,40.9061852,2638.4,2638.3,0.6667]
[1750083767866,30.9061852,2638.4,2638.3,0.6667]
[1750083768054,30.9061852,2638.4,2638.3,4.45701952]
[1750083768270,0.9061852,2638.4,2638.3,4.45701952]
[1750083768482,3.78960256,2638.8,2638.3,4.45701952]
[1750083768667,3.78960256,2638.8,2638.3,0.6667]
[1750083768668,30.0,2638.6,2638.3,0.6667]
[1750083768866,0.90531366,2638.5,2638.3,0.6667]
[1750083769094,13.78989407,2638.6,2638.3,2.4537]
[1750083769269,30.0,2638.5,2638.3,2.4537]
[1750083769450,30.0,2638.5,2638.3,0.6667]
[1750083769654,33.7901294,2638.5,2638.3,0.6667]
[1750083769854,30.0,2638.5,2638.3,0.6667]
[1750083770090,4.59557586,2638.4,2638.3,0.6667]
[1750083770294,15.14557586,2638.4,2638.3,0.6667]
[1750083770461,55.24585953,2638.4,2638.3,0.6667]
[1750083771696,3.79046319,2638.2,2638.1,0.02]
[1750083771891,43.79046319,2638.2,2638.1,0.02]
[1750083772103,48.50983464,2638.2,2638.1,0.02]
[1750083772704,49.85103464,2638.2,2638.1,0.02]
[1750083772860,49.84921453,2638.2,2638.1,0.02]
[1750083773399,0.55,2637.2,2637.1,0.02]
[1750083773560,51.65595778,2637.2,2637.1,0.02]
[1750083773919,10.55,2637.2,2637.1,0.02]
[1750083774060,40.55,2637.2,2637.1,0.02]
[1750083774255,44.3419005,2637.2,2637.1,0.02]
[1750083774493,47.8654,2637.2,2637.1,0.02]
[1750083774880,45.1663005,2637.2,2637.1,0.02]
[1750083775087,49.07553912,2637.2,2637.1,0.02]
[1750083775460,0.55,2636.5,2636.4,1.788]
[1750083775666,54.29306602,2636.5,2636.1,0.02]
[1750083775868,30.0,2636.3,2636.1,0.02]
[1750083776082,30.0,2636.3,2635.5,4.00682308]
[1750083776083,20.50015876,2636.2,2635.5,4.00682308]
[1750083776405,30.0,2636.1,2635.5,0.2125083]
[1750083776711,10.55,2636.4,2635.9,4.57075769]
[1750083777008,10.0,2636.4,2636.1,3.79335578]
[1750083777208,10.0,2636.4,2636.3,3.793195]
[1750083777499,0.1896,2636.0,2635.9,1.23407577]
[1750083777711,0.1896,2636.2,2636.1,3.79348279]
[1750083777872,10.55,2636.7,2636.1,5.58148279]
[1750083778063,10.0,2636.7,2636.3,3.79308768]
[1750083778265,30.0,2636.4,2635.9,0.777]
[1750083778497,0.1896,2636.1,2636.0,5.57562469]
[1750083779372,0.1896,2636.1,2636.0,7.2772969]
[1750083780200,0.1896,2636.1,2636.0,7.23936289]
[1750083781076,0.1896,2636.1,2636.0,7.27729366]
[1750083781790,30.0,2637.4,2637.0,3.79207656]
[1750083781994,3.79104355,2637.8,2637.2,3.79181704]
[1750083781995,0.26030662,2637.3,2637.2,3.79181704]
[1750083782180,0.26030662,2637.3,2637.0,3.79218809]
[1750083782384,3.7926067,2636.8,2636.5,1.783]
[1750083782583,30.0,2636.8,2636.1,0.7511]
[1750083782881,10.1896,2636.4,2636.2,1.783]
[1750083783075,0.1896,2636.0,2635.8,0.7511]
[1750083783411,0.1896,2636.0,2635.9,5.57677062]
[1750083783562,30.0,2636.2,2636.0,3.79355493]
[1750083783974,30.0,2636.2,2635.9,5.57669326]
[1750083784165,0.1896,2636.0,2635.9,5.57669326]
[1750083785682,0.1896,2636.0,2635.9,1.783]
[1750083785886,0.1896,2636.0,2635.9,3.79377062]
[1750083786128,0.1896,2636.0,2635.9,1.783]
[1750083786274,0.1896,2636.0,2635.9,5.57677062]
[1750083787236,0.1896,2636.0,2635.6,10.924]
[1750083787390,9.19595876,2635.7,2635.5,0.2125083]
[1750083787726,44.34420245,2635.6,2635.5,0.2125083]
[1750083788475,40.55,2635.6,2635.5,0.2125083]
[1750083788668,40.55,2635.6,2635.5,4.00685472]
[1750083788669,10.0,2635.6,2635.5,4.00685472]
[1750083788870,0.7578,2635.9,2635.7,3.79404739]
[1750083789075,30.0,2636.2,2636.0,3.79354809]
[1750083789316,30.0,2636.2,2635.8,5.57679366]
[1750083789317,30.0,2636.2,2635.9,3.79376406]
[1750083789476,30.0,2636.2,2635.8,5.57683496]
[1750083789814,30.0,2636.2,2635.7,1.783]
[1750083789815,0.1896,2635.8,2635.7,1.783]
[1750083790054,5.25389523,2636.3,2635.6,3.79420245]
[1750083790235,10.0,2635.9,2635.5,1.9955083]
[1750083790417,0.55,2636.1,2635.8,3.79382649]
[1750083790619,10.55,2636.2,2635.7,3.79399508]
[1750083790845,0.1896,2635.6,2635.5,5.78985472]
[1750083792540,0.1896,2635.6,2635.5,5.82779484]
[1750083792705,0.1896,2635.6,2635.5,7.47824744]
[1750083793117,0.1896,2635.6,2635.5,4.00685472]
[1750083793317,0.1896,2635.6,2635.5,12.28285472]
[1750083796521,0.1896,2635.6,2635.5,4.00685472]
[1750083796738,0.1896,2635.6,2635.5,8.4875083]
[1750083797049,0.1896,2635.6,2635.5,1.9955083]
[1750083797653,0.1896,2635.6,2635.5,5.78985472]
[1750083798727,0.1896,2635.6,2635.5,6.16214264]
[1750083799049,0.1896,2635.6,2635.5,2.36779622]
[1750083799364,0.1896,2635.6,2635.5,6.16214264]
[1750083799742,0.1896,2635.6,2635.5,6.20008371]
[1750083799953,0.1896,2635.6,2635.5,6.16214264]
[1750083800380,0.1896,2635.6,2635.5,7.8839734]
[1750083800669,2.25393327,2636.7,2636.1,0.7732]
[1750083800670,0.8187,2636.7,2636.1,0.7732]
[1750083800959,3.79309087,2636.4,2636.2,8.275]
[1750083801186,30.0,2636.3,2636.2,8.275]
[1750083801351,30.90473514,2636.3,2636.2,8.275]
[1750083801546,0.90473514,2636.3,2636.2,8.275]
[1750083801761,0.90473514,2636.5,2636.3,3.79307484]
[1750083801967,30.0,2636.7,2636.4,3.79305113]
[1750083802164,30.0,2636.7,2636.0,3.79361979]
[1750083802165,0.1896,2636.3,2636.1,3.79341612]
[1750083802348,0.1896,2636.3,2636.2,12.06833889]
[1750083802560,30.0,2636.4,2636.2,12.06833889]
[1750083802728,0.90473514,2636.3,2636.2,12.06833889]
[1750083802931,30.0,2636.5,2636.2,8.275]
[1750083803139,10.90473514,2636.4,2636.2,8.275]
[1750083803380,0.1896,2636.2,2635.7,4.56716767]
[1750083803534,0.90473514,2636.3,2636.1,1.783]
[1750083803877,0.90473514,2636.3,2636.1,8.273]
[1750083804044,0.90473514,2636.3,2635.8,3.79382764]
[1750083804246,0.1896,2635.9,2635.6,1.783]
[1750083804573,10.0,2636.1,2635.6,1.783]
[1750083804775,0.1896,2635.7,2635.6,5.57720245]
[1750083805348,0.1896,2635.7,2635.6,5.61514156]
[1750083806551,0.1896,2635.7,2635.6,5.57720245]
[1750083806879,0.9075311,2636.3,2636.2,3.79333889]
[1750083807179,0.9075311,2636.4,2636.3,3.793195]
[1750083807378,0.7574,2636.8,2636.6,3.7927634]
[1750083807379,0.9075311,2636.7,2636.6,3.7927634]